Cogmind - Beta 11.1 @@@ ROGUE MODE // 2022.06.14 @ 14:23:00 // Winter2019/RPGLIKE Player: btmk16 Result: Destroyed by X-57 Shotgunner with High-powered Shotgun Performance ------------- Evolutions (3) 1500 Regions Visited (5) 1000 Robots Destroyed (91) 455 Value Destroyed (2706) 2706 Prototype IDs (4) 80 Alien Tech Used (0) 0 Bonus (702) 702 TOTAL SCORE: 6443 Bonus ------- High Alert Combat Kills 202 Entered DSFs 500 Cogmind --------- Core Integrity 0/1850 Matter 426/500 Energy 621/625 System Corruption 0% Temperature Cool (2) Movement Treading (160) Location -7/DSF Parts ------- > --- POWER (1) -------- Deuterium Engine > --- PROPULSION (4) --- Light Treads Light Treads Aluminum Leg Titanium Leg > --- UTILITY (5) ------ High-capacity Battery High-capacity Matter Pod Machine Analyzer Hardened Medium Armor Plating > --- WEAPON (3) ------- High-powered Shotgun High-powered Shotgun > --- INVENTORY (3) ---- Medium Matter Pod (100) Rocket Launcher Peak State ------------ > --- POWER ------------ Deuterium Engine > --- PROPULSION ------- Light Treads Light Treads Aluminum Leg Titanium Leg > --- UTILITY ---------- Cooling System High-capacity Battery High-capacity Matter Pod Machine Analyzer Hardened Medium Armor Plating > --- WEAPON ----------- High-powered Shotgun High-powered Shotgun > --- INVENTORY -------- Light Treads Medium Matter Pod Hardened Medium Armor Plating [Rating: 25] Favorites ----------- Power Deuterium Engine Engine Deuterium Engine Propulsion Light Treads Treads Light Treads Leg Aluminum Leg Utility Cooling System Device Cooling System Storage High-capacity Battery Processor Machine Analyzer Protection Hardened Medium Armor Plating Weapon Spread Laser Energy Gun Spread Laser Energy Cannon Light EM Pulse Cannon Ballistic Gun High-powered Shotgun Launcher Rocket Launcher Build | -11 -10 -9 -8 -7 -7 ------- Run | Scr Mat Mat Mat Fac DSF Slots Evolved 9 | . 4 3 1 1 . Power . | . . . . . . Propulsion 3 | . 1 1 1 . . Utility 4 | . 2 2 . . . Weapon 2 | . 1 . . 1 . Parts Attached 36 | . 13 9 14 . . Power 3 | . 1 1 1 . . Engine 3 | . 1 1 1 . . Core . | . . . . . . Reactor . | . . . . . . Propulsion 13 | . 4 4 5 . . Treads 9 | . 3 4 2 . . Leg 4 | . 1 . 3 . . Wheel . | . . . . . . Hover . | . . . . . . Flight . | . . . . . . Utility 10 | . 3 3 4 . . Device 4 | . 2 1 1 . . Storage 2 | . 1 1 . . . Processor 1 | . . . 1 . . Hackware . | . . . . . . Protection 3 | . . 1 2 . . Artifact . | . . . . . . Weapon 10 | . 5 1 4 . . Energy Gun 3 | . 2 1 . . . Energy Cannon 1 | . 1 . . . . Ballistic Gun 5 | . 2 . 3 . . Ballistic Cannon . | . . . . . . Launcher 1 | . . . 1 . . Special Weapon . | . . . . . . Impact Weapon . | . . . . . . Slashing Weapon . | . . . . . . Piercing Weapon . | . . . . . . Special Melee Weapon . | . . . . . . Unidentified Prototypes . | . . . . . . Parts Lost 3 | . . 1 1 . 1 Power . | . . . . . . Propulsion . | . . . . . . Utility 3 | . . 1 1 . 1 Weapon . | . . . . . . Highest Loss Streak 1 | . . 1 1 . 1 To Critical Strikes . | . . . . . . Average Slot Usage (%) 93 | . 93 89 95 93 85 Engine 8 | . 10 10 8 7 7 Treads 17 | . 17 22 16 15 15 Leg 10 | . 6 . 15 15 15 Device 15 | . 25 12 12 7 1 Storage 12 | . 7 13 16 15 15 Processor 2 | . . . 5 7 7 Protection 2 | . . 6 3 7 7 Energy Gun 12 | . 13 22 10 . . Energy Cannon 1 | . 4 . . . . Ballistic Gun 6 | . 7 . 5 15 15 Naked Turns . | . . . . . . Heaviest Build 34 | 6 19 21 34 33 33 Greatest Support 45 | 10 45 45 45 45 45 Greatest Overweight (x) 1 | . 1 . 1 . . Average Overweight (x) . | . . . . . . Largest Inventory Capacity 3 | . 3 3 3 3 3 Average Capacity 2 | . . 3 3 3 3 Most Carried 3 | . 3 3 3 2 2 Average Carried 1 | . . 2 2 2 2 Final Capacity 3 | . 3 3 3 3 3 Final Carried 3 | . 3 2 2 2 2 Class Distribution -------------------- 75% | Hacker-Mutant 24% | Scavenger-Mutant Dominant Class ---------------- Hacker-Mutant | -10/Materials Hacker-Mutant | -9/Materials Hacker-Mutant | -8/Materials Scavenger-Mutant | -7/Factory Scavenger-Mutant | -7/DSF Resources | -11 -10 -9 -8 -7 -7 ----------- Run | Scr Mat Mat Mat Fac DSF Matter Collected 1340 | 200 203 240 563 88 46 Remotely . | . . . . . . Salvage Created 2524 | . 872 481 1043 88 40 Parts 163 | . 70 21 70 2 . Haulers Intercepted 6 | . 2 . 4 . . Recyclers Shooed 6 | . 1 2 3 . . Parts Field Recycled . | . . . . . . Retrieved Matter . | . . . . . . Parts Self-Destructed . | . . . . . . Prevented . | . . . . . . Kills | -11 -10 -9 -8 -7 -7 ------- Run | Scr Mat Mat Mat Fac DSF Combat Hostiles Destroyed 66 | . 21 10 34 . 1 Guns 59 | . 14 10 34 . 1 Cannons 6 | . 6 . . . . AOE 1 | . 1 . . . . Classes Destroyed 11 | . 7 1 3 . . Worker 7 | . 5 . 2 . . Tunneler 1 | . 1 . . . . Hauler 6 | . 2 . 4 . . Recycler 7 | . 1 2 3 1 . Watcher 4 | . 3 . 1 . . Swarmer 10 | . 3 . 7 . . Grunt 41 | . 18 6 17 . . Sentry 10 | . . 4 6 . . Specialist 2 | . . . 2 . . Hunter 1 | . . . 1 . . Heavy 2 | . . . 1 . 1 Best Kill Streak 6 | . 5 4 6 1 1 Combat Bots Only 5 | . 4 3 5 . 1 Max Kills in Single Turn 3 | . 3 1 1 1 1 Gunslinging . | . . . . . . Exploded 1 | . 1 . . . . Melee . | . . . . . . Uniques/NPCs Destroyed . | . . . . . . Combat | -11 -10 -9 -8 -7 -7 -------- Run | Scr Mat Mat Mat Fac DSF Damage Taken 4488 | . 698 347 2611 . 832 Core 3364 | . 568 223 1949 . 624 Absorbed by Shields . | . . . . . . Redirected to Core 2776 | . 407 185 1579 . 605 Core Remaining (%) 67 | 100 86 74 8 . . Volleys Fired 217 | . 79 23 108 1 6 Largest 2 | . 2 2 2 2 2 Hottest 130 | . 130 130 130 50 50 Shots Fired 409 | . 134 46 215 2 12 Gun 379 | . 105 46 214 2 12 Cannon 29 | . 29 . . . . Launcher 1 | . . . 1 . . Special . | . . . . . . Kinetic 184 | . 64 . 106 2 12 Thermal 195 | . 41 46 108 . . Explosive 1 | . . . 1 . . Electromagnetic 29 | . 29 . . . . Robot Hit Streak 18 | . 15 11 18 3 13 Robot Miss Streak 8 | . 7 6 8 1 2 Penetration Max . | . . . . . . Secondary Targets 3 | . . . 3 . . Max Gunslinging Chain 1 | . . . 1 . . Shots Hit Robots 335 | . 91 41 190 2 11 Core Hits 314 | . 84 57 167 1 5 Critical Kills 1 | . . . 1 . . Critical Parts Destroyed 1 | . . . 1 . . Critical Strikes 3 | . . . 3 . . Destroy 3 | . . . 3 . . Melee Attacks . | . . . . . . Impact . | . . . . . . Slashing . | . . . . . . Piercing . | . . . . . . Sneak Attacks . | . . . . . . Combat Hostiles . | . . . . . . Follow-up Attacks . | . . . . . . Damage Inflicted 6199 | . 1860 567 3474 36 262 Guns 5161 | . 822 567 3474 36 262 Cannons 412 | . 412 . . . . Explosions 626 | . 626 . . . . Melee . | . . . . . . Ramming . | . . . . . . Kinetic 2556 | . 311 . 1947 36 262 Thermal 3187 | . 1093 567 1527 . . Explosive . | . . . . . . Electromagnetic 456 | . 456 . . . . Impact . | . . . . . . Slashing . | . . . . . . Piercing . | . . . . . . Highest Corruption 3 | . 3 . . . . Average Corruption 2 | . 2 . . . . Corruption Purged . | . . . . . . Corruption Blocked . | . . . . . . Effects 7 | . 7 . . . . Message Errors 1 | . 1 . . . . Matter Fused 1 | . 1 . . . . Heat Flow Errors 1 | . 1 . . . . Energy Discharges 2 | . 2 . . . . Data Loss (minor) 1 | . 1 . . . . Misfires 1 | . 1 . . . . Overload Shots . | . . . . . . Overflow Damage 105 | . 105 . . . . Projectiles . | . . . . . . Explosions 105 | . 105 . . . . Melee . | . . . . . . Knockbacks . | . . . . . . Impact . | . . . . . . Kinetic . | . . . . . . Secondary . | . . . . . . Self-Inflicted Damage 227 | . 113 114 . . . Shots 3 | . 2 1 . . . Rammed . | . . . . . . Targets Rammed . | . . . . . . Kicked . | . . . . . . Crushed . | . . . . . . Highest Temperature 207 | . 207 54 159 . . Average Temperature 33 | . 51 21 37 . . Received Heat Transfer 1161 | . 243 117 801 . . Siege Activations . | . . . . . . Robots Corrupted 1 | . 1 . . . . Combat Hostiles . | . . . . . . Parts Fried 1 | . 1 . . . . Impact Corruptions . | . . . . . . Robots Melted . | . . . . . . Combat Hostiles . | . . . . . . Parts Melted 1 | . . . 1 . . Heat Transferred 3710 | . 1140 705 1865 . . Parts Sabotaged . | . . . . . . Parts Stolen . | . . . . . . Parts Stripped . | . . . . . . Power Chain Reactions 2 | . 2 . . . . Missiles Intercepted . | . . . . . . Alert | -11 -10 -9 -8 -7 -7 ------- Run | Scr Mat Mat Mat Fac DSF Peak Influence 684 | . 576 684 603 278 207 Initial 273 | . . 243 77 273 197 Average 270 | . 318 471 198 274 199 Maximum Alert Level 2 | . 2 2 2 1 1 Low Security (%) 40 | 100 21 2 62 . 45 Level 1 34 | . 37 39 29 100 54 Level 2 24 | . 40 57 8 . . Level 3 . | . . . . . . Level 4 . | . . . . . . Level 5 . | . . . . . . High Security . | . . . . . . Max Security . | . . . . . . Squads Dispatched 17 | . 6 4 6 . 1 Investigation 8 | . 3 2 3 . . Extermination . | . . . . . . Reinforcement 7 | . 3 . 3 . 1 Assault 2 | . . 2 . . . Garrison . | . . . . . . Intercept . | . . . . . . Searches Triggered . | . . . . . . Construction Impeded . | . . . . . . Haulers Reinforced . | . . . . . . Active Scanning Responses . | . . . . . . Cargo Convoy Interrupts . | . . . . . . Stealth | -11 -10 -9 -8 -7 -7 --------- Run | Scr Mat Mat Mat Fac DSF Distress Signals 6 | . 2 . 4 . . Communications Jammed . | . . . . . . Distress Signals . | . . . . . . Times Spotted 99 | . 35 10 50 . 4 Peak Tracking Total 6 | . 6 3 6 . 3 Tactical Retreats 5 | . 1 1 3 . . Traps | -11 -10 -9 -8 -7 -7 ------- Run | Scr Mat Mat Mat Fac DSF Traps Triggered 5 | . 3 2 . . . Indirectly . | . . . . . . Trap Hack Attempts . | . . . . . . Triggered . | . . . . . . Disarmed 4 | . 4 . . . . Reprogrammed . | . . . . . . Reused . | . . . . . . Traps Extracted . | . . . . . . Installed . | . . . . . . Triggered . | . . . . . . Machines | -11 -10 -9 -8 -7 -7 ---------- Run | Scr Mat Mat Mat Fac DSF Machines Disabled 9 | . 7 1 1 . . Max in Single Turn 2 | . 2 1 1 . . Machines Sabotaged . | . . . . . . Garrisons Compromised . | . . . . . . Overloaded Fab Kills . | . . . . . . Hacking | -11 -10 -9 -8 -7 -7 --------- Run | Scr Mat Mat Mat Fac DSF Machines Accessed 14 | . 5 3 5 1 . Terminals 12 | . 4 3 4 1 . Fabricators . | . . . . . . Repair Stations . | . . . . . . Recycling Units 2 | . 1 . 1 . . Scanalyzers . | . . . . . . Garrison Access . | . . . . . . Total Hacks 67 | . 27 15 24 1 . Successful 41 | . 17 6 17 1 . Failed 25 | . 9 9 7 . . Catastrophic 1 | . 1 . . . . Database Lockouts 1 | . 1 . . . . Manual 33 | . 6 4 23 . . Terminals 65 | . 26 15 23 1 . Fabricators . | . . . . . . Repair Stations . | . . . . . . Recycling Units 2 | . 1 . 1 . . Scanalyzers . | . . . . . . Garrison Access . | . . . . . . Terminal Hacks 36 | . 16 6 13 1 . Record 2 | . 2 . . . . Part Schematic 1 | . . . 1 . . Robot Analysis 10 | . 3 . 7 . . Prototype ID Bank 2 | . 1 . 1 . . Open DSF 1 | . . . . 1 . Level Access Points 1 | . . 1 . . . Branch Access Points 1 | . 1 . . . . Emergency Access Points 1 | . . 1 . . . Terminal Index 1 | . . 1 . . . Scanalyzer Index 1 | . 1 . . . . Alert Level 1 | . . 1 . . . Unreport Threat 4 | . . 2 2 . . Locate Traps 1 | . 1 . . . . Disarm Traps 2 | . 2 . . . . Dispatch Records 2 | . 2 . . . . Maintenance Status 1 | . . . 1 . . Reinforcement Status 1 | . 1 . . . . Assault Status 1 | . 1 . . . . Hauler Manifests 1 | . . . 1 . . Registered Components 1 | . 1 . . . . Fabricator Hacks . | . . . . . . Repair Station Hacks . | . . . . . . Recycling Unit Hacks . | . . . . . . Scanalyzer . | . . . . . . Garrison Access Hacks . | . . . . . . Unauthorized Hacks 5 | . 1 . 4 . . Terminals 3 | . . . 3 . . Track 1 | . . . 1 . . Botnet 2 | . . . 2 . . Fabricators . | . . . . . . Repair Stations . | . . . . . . Recycling Units 2 | . 1 . 1 . . Tunnel 2 | . 1 . 1 . . Scanalyzers . | . . . . . . Garrison Access . | . . . . . . Data Cores Recovered . | . . . . . . Used . | . . . . . . Hacking Detections 10 | . 4 3 3 . . Full Trace Events 8 | . 4 2 2 . . Feedback Events . | . . . . . . Feedback Blocked . | . . . . . . Robot Schematics Acquired . | . . . . . . Robots Built . | . . . . . . Authchips . | . . . . . . Time . | . . . . . . Total Robot Build Rating . | . . . . . . Part Schematics Acquired 1 | . . . 1 . . Parts Built . | . . . . . . Authchips . | . . . . . . Time . | . . . . . . Total Part Build Rating . | . . . . . . Parts Repaired . | . . . . . . Time . | . . . . . . Parts Recycled . | . . . . . . Recycled Matter . | . . . . . . Retrieved Matter . | . . . . . . Retrieved Components . | . . . . . . Parts Scanalyzed . | . . . . . . Part Schematics Acquired . | . . . . . . Parts Damaged . | . . . . . . Bothacking | -11 -10 -9 -8 -7 -7 ------------ Run | Scr Mat Mat Mat Fac DSF Used RIF Installer . | . . . . . . Robots Hacked . | . . . . . . Non-combat . | . . . . . . Combat . | . . . . . . Robot Hacks Applied . | . . . . . . Relay Couplers Released . | . . . . . . Fabnet Peak Effective % . | . . . . . . Robots Rewired . | . . . . . . Allies Hacked . | . . . . . . Hacks Repelled . | . . . . . . Allies | -11 -10 -9 -8 -7 -7 -------- Run | Scr Mat Mat Mat Fac DSF Total Allies . | . . . . . . Largest Group . | . . . . . . Highest-Rated Group . | . . . . . . Highest-Rated Ally . | . . . . . . Total Orders . | . . . . . . Ally Attacks . | . . . . . . Total Damage . | . . . . . . Kills . | . . . . . . Allies Corrupted . | . . . . . . Allies Melted . | . . . . . . Intel | -11 -10 -9 -8 -7 -7 ------- Run | Scr Mat Mat Mat Fac DSF Robot Analysis Total 10 | . 3 . 7 . . Derelict Logs Recovered . | . . . . . . Drone Launches . | . . . . . . Drone Recoveries . | . . . . . . Exploration | -11 -10 -9 -8 -7 -7 ------------- Run | Scr Mat Mat Mat Fac DSF Turns Passed 3627 | 9 1168 436 1845 51 118 Spaces Moved 1721 | 8 573 207 839 31 63 Core . | . . . . . . Treads 1526 | . 407 207 818 31 63 Legs 195 | 8 166 . 21 . . Wheels . | . . . . . . Hover . | . . . . . . Flight . | . . . . . . Fastest Speed 120 | 120 120 160 120 160 160 Average Speed 157 | 120 153 160 159 160 160 Slowest Speed 200 | 120 190 160 200 160 160 Overloaded Moves . | . . . . . . Propulsion Burnouts . | . . . . . . Robots Hopped . | . . . . . . Cave-ins Triggered . | . . . . . . Exploration Rate (%) 41 | 2 94 25 65 1 64 Regions Visited 5 Branch Regions . Pre-discovered Areas 2 | . 1 . 1 . . Known Exits Taken 2 | . . 1 . 1 . Unknown Exits Taken 3 | 1 1 . 1 . . Scrap Searched . | . . . . . . Spaces Dug . | . . . . . . Terrain Destroyed 62 | . 16 36 10 . . Melee . | . . . . . . Projectile . | . . . . . . AOE 62 | . 16 36 10 . . Terrain Rammed . | . . . . . . Walls Destroyed . | . . . . . . Machines Disabled . | . . . . . . Actions | -11 -10 -9 -8 -7 -7 --------- Run | Scr Mat Mat Mat Fac DSF Total 2241 | 7 742 264 1128 31 69 Wait 172 | . 44 16 112 . . Move 1716 | 7 572 206 838 30 63 Hop . | . . . . . . Pick Up 8 | . 3 . 5 . . Fast Attach 22 | . 11 6 5 . . Attach 4 | . . 1 3 . . Detach . | . . . . . . Swap 10 | . 2 2 6 . . Drop 20 | . 8 3 9 . . Fire 217 | . 79 23 108 1 6 Melee . | . . . . . . Ram . | . . . . . . Kick . | . . . . . . Crush . | . . . . . . Escape Stasis . | . . . . . . Rewire . | . . . . . . Trap . | . . . . . . Miscellaneous 72 | . 23 7 42 . . Route ------- -11/Scrapyard -10/Materials (discovered 5 exits: *Mat x3 / *Min x2) -9/Materials (discovered 5 exits: *Mat x3 / [*Sto x2]) -8/Materials (discovered 3 exits: *Fac x3) -7/Factory -7/DSF (discovered 1 exit: [*Fac]) History --------- Turn | Location | Event 1 | -11/Scrapyard | Discovered new exit (range 1) 10 | -11/Scrapyard | Entered Materials 12 | -10/Materials | Upgraded with Propulsion slot (x1) 12 | -10/Materials | Upgraded with Utility slot (x1) 12 | -10/Materials | Upgraded with Weapon slot (x1) 164 | -10/Materials | Discovered new exit (range 15) 214 | -10/Materials | Discovered new exit (range 5) 294 | -10/Materials | Discovered new exit (range 16) 316 | -10/Materials | Build established: Hacker-Mutant 353 | -10/Materials | Reached level 2 360 | -10/Materials | Upgraded with Utility slot (x1) 646 | -10/Materials | Discovered new exit (range 16) 818 | -10/Materials | Central database locked down 1017 | -10/Materials | Discovered new exit (range 16) 1050 | -10/Materials | Reached level 3 1107 | -10/Materials | Identified exit to Mines 1178 | -10/Materials | Entered another Materials area 1180 | -9/Materials | Reached level 4 1229 | -9/Materials | Identified exit to Materials 1276 | -9/Materials | Discovered new exit (range 16) 1440 | -9/Materials | Reached level 5 1447 | -9/Materials | Discovered new exit (range 8) 1488 | -9/Materials | Upgraded with Propulsion slot (x1) 1488 | -9/Materials | Upgraded with Utility slot (x2) 1578 | -9/Materials | First assault squad dispatched 1614 | -9/Materials | Entered another Materials area 1616 | -8/Materials | Reached level 6 1621 | -8/Materials | Upgraded with Propulsion slot (x1) 1857 | -8/Materials | Core integrity fell below 50% 2215 | -8/Materials | Reached level 7 2223 | -8/Materials | Core integrity fell below 20% 2433 | -8/Materials | Discovered new exit (range 16) 2909 | -8/Materials | Reached level 8 3069 | -8/Materials | Build established: Scavenger-Mutant 3081 | -8/Materials | Discovered new exit (range 3) 3314 | -8/Materials | Discovered new exit (range 16) 3368 | -8/Materials | Reached level 9 3459 | -8/Materials | Entered Factory 3460 | -7/Factory | Core integrity fell below 50% 3460 | -7/Factory | Core integrity fell below 20% 3461 | -7/Factory | Reached level 10 3469 | -7/Factory | Upgraded with Weapon slot (x1) 3510 | -7/Factory | Identified exit to DSF 3510 | -7/Factory | Entered DSF 3512 | -7/DSF | Reached level 11 3546 | -7/DSF | Additional patrols routed to DSF 3618 | -7/DSF | Discovered new exit (range 20) 3628 | -7/DSF | Destroyed by X-57 Shotgunner with High-powered Shotgun Last Messages --------------- 03539_ Slug penetrates Wall. 03545_ Penetrated by Slug. 03546_ Acquired 2 matter. 03546_ Hostiles detected in DSF, routing additional patrols. 03549_ H-61 Shepherd calls for reinforcements. 03549_ ALERT: Hostile activity reported, dispatching reinforcements to area. 03552_ Penetrated by Slug. 03564_ H-61 Shepherd destroyed. 03567_ Acquired 40 matter. 03570_ Penetrated by Slug. 03573_ Acquired 4 matter. 03583_ Slug penetrates Wall. 03588_ Penetrated by Slug. 03618_ EXIT=FOUND 03618_ Penetrated by Slug. 03620_ C-30 ARC bursts open, deploying its payload. 03622_ Penetrated by Slug. 03622_ A-02 Transporter exits level. 03625_ Penetrated by Slug. Map ----- +----------------------------------------------------+ | | | | | | | | | | | | | | | | | | | | | | | | | | | | | | | ??????????????????????????????????????????????? | | ??????????????????????????????????????????????? | | ??????????????????????????????????????????????? | | ?????????????????????????????????????###??????? | | ?????????????????????????????????????#""??????? | | ?????????????????????????????????????#"#??????? | | ????????????????????#########???????##"####???? | | ????????????????###?# [[#########"""""#???? | | ??????#"""""##!!# # [[#!!!# ##"""""#??#? | | ??????#""< x ^ ""##"#? | | ??????""" % h @ h """""#? | | ????????????##!!#!!!### ###!!!#!!## ""####? | | ????????????????????### #?#!!!#!!### ###???? | | ????????????????????? !!########## ##????? | | ????????????????????# !!#??????# !#????? | | ????????????????????# !!#??????# !#????? | | ????????????????????### ###??????### ##????? | | ????????????????????#[[ !??????###!! #????? | | ????????????????????#[[ !!????# ##!! #????? | | ?????????????????????[[ !!??## #?#!! #????? | | ????????????????????### #####"###### ###???? | | ?????????????????????## ###]]]#///""% #???? | | ????????????# #!!!## %"#]]]"///"# #???? | | ???????!! % !!#???? | | ???????!! ^^ % !!#???? | | ???????!! %% !!#???? | | ????????! ##///# ## ##!!!# ## #???? | | ????????????????# ???## ###!!!# ## #???? | | ??????????????????????# ??########## ###???? | | ?????????????????????!! ??????????? ?????? | | ????????????????????#!! ??????????? #????? | | ????????????????????#!! ??????????? #????? | | ????????????????????### ???????????# ##????? | | ?????????????????????? ??????????? [?????? | | ????????????????????? ??????????? [?????? | +----------------------------------------------------+ Best States ------------- Heat Dissipation 69 Energy Generation 19 Energy Capacity 625 Matter Stores 500 Matter Capacity 500 Sight Range 20 Robot Scan Range 4 Terrain Scan Density 10 Armor Coverage 225 Evasion (%) 55 Recoil Reduction 2 Offensive Hacking 10 Defensive Hacking 10 Item Schematics ----------------- Lgt. Armor Plating | -8/Materials | Hacked Robot Schematics ------------------ None Fabricated ------------ Nothing Alien Tech Used ----------------- None Achievements -------------- None Challenges ------------ None RPGLIKE | -11 -10 -9 -8 -7 -7 --------- Run | Scr Mat Mat Mat Fac DSF Levels Raised 10 | . 2 2 4 1 1 XP Earned 18391 | 3000 3421 2933 6187 1500 1350 XP Spent 17975 | . 5700 3300 4400 2375 2200 Upgrades 54 | . 14 3 22 5 10 Propulsion Slot 3 | . 1 1 1 . . Utility Slot 4 | . 2 2 . . . Weapon Slot 2 | . 1 . . 1 . Core Integrity 25 | . . . 15 . 10 Energy Generation 1 | . 1 . . . . Energy Storage 2 | . 1 . 1 . . Mass Support 1 | . 1 . . . . Inventory Capacity 3 | . 3 . . . . Sight Range 4 | . . . 1 3 . Sensor Range 2 | . . . 1 1 . Ranged Accuracy 3 | . . . 3 . . Hack Attack % 2 | . 2 . . . . Hack Defense % 2 | . 2 . . . . Protomatter Created 732 | . 238 98 396 . . Integrity Restored 1507 | . 484 156 867 . . Core 1507 | . 484 156 867 . . Protomatter Decayed 151 | . 55 29 67 . . Game ------ Seed NovaGrapheneSabre Manual? 0 Play Time 00:27:16 Cumulative 319.9 hours Start 2022.06.14 @ 13:55:46 End 2022.06.14 @ 14:23:00 Sessions 1 Manual Loads 0 Difficulty Rogue Special Mode Winter2019/RPGLIKE Game No. 398 Rogue 397 Adventurer 0 Explorer 1 Win Type - Total 8 Types 6/0/0/2/0/0/0/0/0 Lore% 70 Gallery% 81 Achievement% 60 Wizard Run 0 Options --------- ASCII 0 Keyboard 1 Movement Vi Keybinds 0 Fullscreen 1 Font 18/SmallcapsGlow Map View 76x50 Tactical HUD 1 Map Filters NONE Filters NONE Steam 1 RUN: 239b8a3a-c678-403c-aa7e-560df719f6ae